fUST/lending_fUST_20240623
["ID","MTS","AMOUNT","RATE_DAILY","PERIOD"]
[330196137,1719109832693,-153.0,0.00016898,2]
[330196139,1719109832702,-153.0,0.00016898,2]
[330196140,1719109832713,-153.0,0.00016898,2]
[330196142,1719109832723,-153.0,0.00016898,2]
[330196144,1719109832732,-153.0,0.00016898,2]
[330196145,1719109832742,-153.0,0.00017018,2]
[330196146,1719109832752,-153.0,0.00017018,2]
[330196147,1719109832762,-153.0,0.00017018,2]
[330196148,1719109832772,-184.3,0.00017148,2]
[330196149,1719109832794,-155.0,0.0001726,2]
[330196150,1719109832803,-839.50821258,0.00017299,2]
[330196151,1719109832813,-184.3,0.00017316,2]
[330196152,1719109832822,-17.18676253,0.00017484,2]
[330196153,1719109832834,-167.11323747,0.00017484,2]
[330196154,1719109832843,-267.31615623,0.00017627,2]
[330196155,1719109833310,-364.46109769,0.00017627,2]
[330196156,1719109833319,-184.3,0.00017653,2]
[330196157,1719109833328,-131.62934723,0.00017808,2]
[330196378,1719111033015,-839.50821258,0.00015784,2]
[330196380,1719111033024,-945.278,0.00016767,2]
[330196382,1719111033034,-153.0,0.00017107,2]
[330196384,1719111033043,-150.5,0.000172,2]
[330196386,1719111033053,-150.5,0.00017363,2]
[330196389,1719111033062,-155.0,0.0001741,2]
[330196392,1719111033071,-150.5,0.00017527,2]
[330196395,1719111033081,-150.5,0.00017691,2]
[330196398,1719111033089,-4967.49871959,0.00017726,2]
[330196401,1719111033098,-150.5,0.00017854,2]
[330196404,1719111033108,-151.0,0.00017854,2]
[330196407,1719111033117,-300.0,0.00017863,2]
[330196409,1719111033126,-9708.9910673,0.00017864,2]
[330196411,1719111033136,-31.33972791,0.00017866,2]
[330196412,1719111033145,-2810.463706,0.00017866,2]
[330196414,1719111033155,-169.668082,0.00017866,2]
[330196415,1719111033164,-249.176075,0.00017866,2]
[330196416,1719111033173,-156.332664,0.00017866,2]
[330196417,1719111033183,-195.357,0.00017866,2]
[330196418,1719111033192,-173.016532,0.00017866,2]
[330196419,1719111033201,-156.122049,0.00017866,2]
[330196420,1719111033211,-264.108261,0.00017866,2]
[330196421,1719111033220,-260.838692,0.00017866,2]
[330196422,1719111033229,-156.503215,0.00017866,2]
[330196423,1719111033238,-985.29244302,0.00017891,2]
[330196424,1719111033251,-723.7953872,0.00017893,2]
[330196431,1719111039427,-261.49705579,0.00017893,2]
[330196432,1719111039439,-1085.00294421,0.00017895,4]
[330196458,1719111896365,1398.71450514,0.000225,30]
[330196492,1719112238326,-808.92881548,0.00016376,4]
[330196865,1719114110990,3125.23136675,0.00014096,4]
[330196866,1719114242016,157.74467629,0.00014096,2]
[330196867,1719114319829,191500.0,0.00025999,60]
[330196992,1719114727259,193.42,0.00010959,2]
[330196993,1719114737757,161.19,0.00010959,2]
[330196994,1719114748278,805.96,0.00010959,2]
[330196999,1719114806812,16215.99027815,0.00010959,2]
[330197000,1719114824503,567.15112247,0.00013283,2]
[330197001,1719114896837,298.42729431,0.00013283,2]
[330197002,1719114896862,9199.62298789,0.00013283,2]
[330197069,1719115832412,-584.95296827,0.00015,2]
[330197072,1719115832424,-1974.51768342,0.00015,2]
[330197075,1719115832434,-327.19443299,0.00015002,4]
[330197078,1719115832443,-839.50821258,0.00016525,2]
[330197081,1719115832452,-881.424,0.00016606,2]
[330197084,1719115832461,-284.35949886,0.00016873,2]
[330197087,1719115832471,-294.7843092,0.000172,2]
[330197090,1719115832480,-153.0,0.000172,2]
[330197094,1719115832490,-6875.37504864,0.0001722,2]
[330197097,1719115832499,-287.0,0.00017236,2]
[330197100,1719115832508,-153.0,0.00017237,2]
[330197103,1719115832516,-153.0,0.00017237,2]
[330197104,1719115832525,-153.0,0.00017237,2]
[330197107,1719115832535,-153.0,0.00017237,2]
[330197109,1719115832544,-153.0,0.00017237,2]
[330197110,1719115832553,-153.0,0.00017237,2]
[330197112,1719115832562,-198.4,0.00017244,2]
[330197114,1719115832571,-600.0,0.00017356,2]
[330197117,1719115832580,-198.4,0.00017395,2]
[330197119,1719115832590,-600.0,0.00017537,2]
[330197121,1719115832599,-198.4,0.00017545,2]
[330197123,1719115832608,-155.0,0.0001765,2]
[330197125,1719115832617,-10039.16867629,0.00017653,2]
[330197127,1719115832626,-198.4,0.00017696,2]
[330197129,1719115832636,-151.0,0.00017696,2]
[330197131,1719115832645,-157.45762565,0.00017714,2]
[330197133,1719115832654,-600.0,0.00017717,2]
[330197134,1719115832664,-1286.96544263,0.00017766,2]
[330197146,1719115840628,-55.19824305,0.00017766,2]
[330197147,1719115840638,-524.52787505,0.00017791,2]
[330197148,1719115840647,-689.1612884,0.00017797,2]
[330197202,1719116055655,-200.0,0.00015883,2]
[330197315,1719117042063,-64.0,0.00016,2]
[330197318,1719117046872,-126.58341641,0.00016,2]
[330197319,1719117046882,-945.278,0.00016686,2]
[330197320,1719117046892,-195.0,0.00017247,2]
[330197321,1719117046901,-600.0,0.00017356,2]
[330197322,1719117046911,-195.0,0.00017397,2]
[330197323,1719117046920,-4967.49871959,0.00017412,2]
[330197324,1719117046930,-307.9960519,0.000175,2]
[330197325,1719117046940,-292.5693121,0.000175,2]
[330197326,1719117046950,-300.0,0.00017528,2]
[330197327,1719117046959,-493.684122,0.00017529,2]
[330197328,1719117046969,-329.122749,0.00017529,2]
[330197329,1719117046979,-454.462547,0.00017529,2]
[330197330,1719117046988,-195.17109,0.00017529,2]
[330197331,1719117046997,-1056.433044,0.00017529,2]
[330197332,1719117047007,-2287.405182,0.00017529,2]
[330197333,1719117047016,-1144.469131,0.00017529,2]
[330197334,1719117047025,-614.48644818,0.00017537,2]
[330197335,1719117047035,-195.0,0.00017547,2]
[330197336,1719117047044,-155.0,0.0001763,2]
[330197337,1719117047053,-979.57956344,0.00017648,2]
[330197338,1719117047063,-979.57956343,0.00017686,2]
[330197339,1719117047073,-195.0,0.00017698,2]
[330197340,1719117047082,-151.0,0.00017698,2]
[330197341,1719117047091,-458.96189066,0.000177,2]
[330197342,1719117047102,-979.57956343,0.00017724,2]
[330197343,1719117047111,-493.684122,0.00017748,2]
[330197344,1719117047120,-329.122749,0.00017748,2]
[330197345,1719117047129,-454.462547,0.00017748,2]
[330197346,1719117047138,-1056.433044,0.00017748,2]
[330197347,1719117047148,-2287.405182,0.00017748,2]
[330197348,1719117047157,-1144.469131,0.00017748,2]
[330197349,1719117047166,-154.82195475,0.00017761,2]
[330197350,1719117047176,-979.57956343,0.00017762,2]
[330197351,1719117047185,-17497.349095,0.000178,2]
[330197352,1719117047195,-979.57956343,0.000178,2]
[330197353,1719117047204,-153.0,0.00017805,2]
[330197354,1719117047213,-153.0,0.00017805,2]
[330197355,1719117047223,-153.0,0.00017805,2]
[330197356,1719117047233,-153.0,0.00017805,2]
[330197357,1719117047242,-153.0,0.00017805,2]
[330197358,1719117047252,-153.0,0.00017805,2]
[330197359,1719117047261,-153.0,0.00017805,2]
[330197360,1719117047271,-153.0,0.00017805,2]
[330197361,1719117047280,-153.0,0.00017805,2]
[330197362,1719117047290,-153.0,0.00017805,2]
[330197363,1719117047300,-153.0,0.00017805,2]
[330197364,1719117047310,-153.0,0.00017805,2]
[330197365,1719117047319,-153.0,0.00017805,2]
[330197366,1719117047329,-153.0,0.00017805,2]
[330197367,1719117047338,-153.0,0.00017805,2]
[330197368,1719117047348,-153.0,0.00017805,2]
[330197369,1719117047357,-503.36460475,0.00017808,2]
[330197370,1719117047367,-153.0,0.00017829,2]
[330197371,1719117047376,-153.0,0.00017829,2]
[330197372,1719117047386,-153.0,0.00017829,2]
[330197373,1719117047395,-195.0,0.00017848,2]
[330197374,1719117047404,-151.0,0.00017848,2]
[330197375,1719117047413,-153.0,0.00017864,2]
[330197376,1719117047422,-153.0,0.00017864,2]
[330197377,1719117047431,-153.0,0.00017864,2]
[330197378,1719117047441,-153.0,0.00017864,2]
[330197379,1719117047450,-153.0,0.00017864,2]
[330197380,1719117047460,-153.0,0.00017864,2]
[330197381,1719117047469,-153.0,0.00017864,2]
[330197382,1719117047479,-153.0,0.00017864,2]
[330197383,1719117047493,-153.0,0.00017864,2]
[330197384,1719117047503,-153.0,0.00017864,2]
[330197385,1719117047512,-153.0,0.00017864,2]
[330197386,1719117047522,-153.0,0.00017864,2]
[330197387,1719117047531,-153.0,0.00017864,2]
[330197388,1719117047540,-153.0,0.00017864,2]
[330197389,1719117047550,-153.0,0.00017864,2]
[330197390,1719117047559,-153.0,0.00017864,2]
[330197391,1719117047569,-153.0,0.00017864,2]
[330197392,1719117047580,-150.595203,0.00017866,2]
[330197393,1719117047590,-192.393212,0.00017866,2]
[330197394,1719117047601,-341.80499,0.00017866,2]
[330197395,1719117047613,-337.199227,0.00017866,2]
[330197396,1719117047623,-341.80499,0.00017866,2]
[330197397,1719117047632,-562.092741,0.00017866,2]
[330197398,1719117047643,-169.747932,0.00017866,2]
[330197399,1719117047652,-249.176075,0.00017866,2]
[330197400,1719117047662,-156.332666,0.00017866,2]
[330197401,1719117047672,-195.357,0.00017866,2]
[330197402,1719117047682,-204.356264,0.00017866,2]
[330197403,1719117047692,-156.122049,0.00017866,2]
[330197404,1719117047702,-264.108261,0.00017866,2]
[330197405,1719117047713,-260.838692,0.00017866,2]
[330197406,1719117047723,-156.503215,0.00017866,2]
[330197407,1719117047737,-72179.34581578,0.0001789,2]
[330197408,1719117047746,-2000.0,0.000179,2]
[330197409,1719117047755,-493.684122,0.00017967,2]
[330197410,1719117047764,-329.122749,0.00017967,2]
[330197411,1719117047773,-454.462547,0.00017967,2]
[330197412,1719117047782,-1056.433044,0.00017967,2]
[330197413,1719117047791,-2287.405182,0.00017967,2]
[330197414,1719117047800,-1144.469131,0.00017967,2]
[330197415,1719117047809,-15373.02161128,0.00017978,2]
[330197416,1719117047818,-2700.0,0.00017991,2]
[330197417,1719117047827,-195.0,0.00017998,2]
[330197418,1719117047836,-151.0,0.00017998,2]
[330197419,1719117047846,-34760.08049708,0.00018,2]
[330197427,1719117390337,36.1839205,0.00026,60]
[330197431,1719117608933,-876.0,0.00016689,2]
[330197432,1719117608956,-153.0,0.00017864,2]
[330197433,1719117608982,-153.0,0.00017864,2]
[330197434,1719117609137,-153.0,0.00017864,2]
[330197435,1719117609160,-153.0,0.00017864,2]
[330197436,1719117609183,-153.0,0.00017864,2]
[330197437,1719117609205,-153.0,0.00017864,2]
[330197438,1719117609225,-153.0,0.00017864,2]
[330197439,1719117609246,-153.0,0.00017864,2]
[330197440,1719117609267,-153.0,0.00017864,2]
[330197441,1719117609288,-153.0,0.00017864,2]
[330197442,1719117609310,-153.0,0.00017864,2]
[330197443,1719117609330,-2000.0,0.000179,2]
[330197444,1719117609352,-401.59165431,0.000179,2]
[330197445,1719117609374,-153.0,0.00017916,2]
[330197446,1719117609395,-153.0,0.00017916,2]
[330197447,1719117609419,-153.0,0.00017916,2]
[330197448,1719117610846,-153.0,0.00017916,2]
[330197449,1719117610869,-153.0,0.00017916,2]
[330197450,1719117610896,-153.0,0.00017916,2]
[330197451,1719117610919,-153.0,0.00017916,2]
[330197452,1719117610943,-153.0,0.00017916,2]
[330197453,1719117610971,-153.0,0.00017916,2]
[330197454,1719117610995,-153.0,0.00017916,2]
[330197455,1719117611020,-153.0,0.00017916,2]
[330197456,1719117611047,-153.0,0.00017916,2]
[330197457,1719117611069,-153.0,0.00017916,2]
[330197458,1719117611092,-153.0,0.00017916,2]
[330197459,1719117611114,-157.0,0.0001796,2]
[330197460,1719117611136,-9708.99106631,0.00017974,2]
[330197461,1719117611158,-17699.41727938,0.00018,2]
[330197463,1719117641445,-4772.2,0.00018,2]
[330197644,1719118246317,-52.61873403,0.00016689,2]
[330197649,1719118632244,491.286,0.00014,2]
[330198151,1719120633016,-876.0,0.00016689,2]
[330198153,1719120633025,-154.80649189,0.0001681,2]
[330198155,1719120633035,-932.77189747,0.00016932,2]
[330198157,1719120633044,-4793.45697285,0.00016989,2]
[330198158,1719120633053,-300.0,0.00016989,2]
[330198160,1719120633063,-15834.09710627,0.0001699,2]
[330198162,1719120633072,-257.39308855,0.00017256,2]
[330198164,1719120633082,-600.0,0.00017356,2]
[330198166,1719120633092,-600.0,0.00017537,2]
[330198168,1719120633101,-257.39308852,0.00017542,2]
[330198170,1719120633111,-151.0,0.00017571,2]
[330198171,1719120633119,-151.0,0.00017704,2]
[330198173,1719120633129,-600.0,0.00017717,2]
[330198175,1719120633138,-157.45762565,0.0001782,2]
[330198177,1719120633147,-257.39308852,0.00017829,2]
[330198179,1719120633156,-151.0,0.00017837,2]
[330198181,1719120633166,-351.39269753,0.000179,2]
[330198183,1719120633175,-153.0,0.0001792,2]
[330198184,1719120633185,-153.0,0.0001792,2]
[330198186,1719120633194,-153.0,0.0001792,2]
[330198188,1719120633204,-153.0,0.0001792,2]
[330198190,1719120633213,-153.0,0.0001792,2]
[330198192,1719120633223,-153.0,0.0001792,2]
[330198194,1719120633232,-153.0,0.0001792,2]
[330198196,1719120633241,-153.0,0.0001792,2]
[330198198,1719120633250,-153.0,0.0001792,2]
[330198199,1719120633260,-153.0,0.00017921,2]
[330198201,1719120633269,-153.0,0.00017921,2]
[330198203,1719120633278,-153.0,0.00017921,2]
[330198205,1719120633287,-153.0,0.00017921,2]
[330198207,1719120633296,-153.0,0.00017921,2]
[330198209,1719120633306,-153.0,0.00017921,2]
[330198211,1719120633316,-155.0,0.0001793,2]
[330198212,1719120633325,-151.0,0.0001797,2]
[330198214,1719120633336,-640.11039671,0.00017996,2]
[330198216,1719120633345,-1386.83387194,0.00018,2]
[330199033,1719121846921,-876.0,0.00016888,2]
[330199035,1719121846931,-839.50821258,0.00017398,2]
[330199036,1719121846942,-153.0,0.00017813,2]
[330199037,1719121846951,-153.0,0.00017813,2]
[330199039,1719121846961,-151.0,0.00017842,2]
[330199042,1719121846971,-171.59539236,0.000179,2]
[330199043,1719121846980,-153.0,0.00017951,2]
[330199044,1719121846990,-153.0,0.00017951,2]
[330199045,1719121847000,-153.0,0.00017951,2]
[330199046,1719121847009,-153.0,0.00017951,2]
[330199047,1719121847018,-153.0,0.00017951,2]
[330199048,1719121847029,-151.0,0.00017974,2]
[330199049,1719121847038,-287.0,0.00017999,2]
[330199050,1719121847048,-12148.2521794,0.00018,2]
[330199051,1719121847057,-6262.72717173,0.00018,2]
[330199052,1719121847066,-5924.67194739,0.00018,2]
[330199053,1719121847076,-477.28525612,0.00018,2]
[330199054,1719121847086,-825.77816292,0.00018,2]
[330199055,1719121847095,-154.900607,0.00018,2]
[330199056,1719121847105,-302.009814,0.00018,7]
[330199057,1719121847114,-153.0,0.00018,2]
[330199058,1719121847123,-154.004817,0.00018,2]
[330199059,1719121847133,-20000.0,0.00018081,2]
[330199060,1719121847143,-156.332664,0.00018089,2]
[330199061,1719121847153,-195.357,0.00018089,2]
[330199062,1719121847163,-264.108261,0.00018089,2]
[330199063,1719121847173,-260.838692,0.00018089,2]
[330199065,1719121847183,-336.77073919,0.00018089,2]
[330199074,1719121847685,-5.03425081,0.00018089,2]
[330199075,1719121847695,-337.199227,0.00018089,2]
[330199076,1719121847705,-157.76652219,0.00018089,2]
[330199112,1719123043919,-876.0,0.00016897,2]
[330199114,1719123043929,-153.0,0.00017782,2]
[330199116,1719123043938,-621.00551983,0.00017951,2]
[330199118,1719123043947,-1587.92519945,0.00018078,2]
[330199120,1719123043957,-404.32621881,0.00018089,2]
[330199122,1719123043967,-151.0,0.0001813,2]
[330199124,1719123043976,-151.0,0.0001813,2]
[330199126,1719123043986,-150.595203,0.00018164,2]
[330199128,1719123043995,-493.684122,0.00018186,2]
[330199130,1719123044005,-454.462547,0.00018186,2]
[330199132,1719123044014,-329.122749,0.00018186,2]
[330199134,1719123044024,-1056.433044,0.00018186,2]
[330199136,1719123044038,-2287.405182,0.00018186,2]
[330199138,1719123044049,-1144.469131,0.00018186,2]
[330199140,1719123044059,-151.0,0.00018259,2]
[330199142,1719123044068,-151.0,0.00018259,2]
[330199145,1719123044078,-173.016532,0.00018313,2]
[330199148,1719123044090,-192.393212,0.00018313,2]
[330199150,1719123044100,-156.332664,0.00018313,2]
[330199152,1719123044108,-264.108261,0.00018313,2]
[330199154,1719123044118,-260.838692,0.00018313,2]
[330199156,1719123044127,-341.80499,0.00018313,2]
[330199158,1719123044136,-337.199227,0.00018313,2]
[330199160,1719123044146,-562.092741,0.00018313,2]
[330199162,1719123044155,-284.35949886,0.00018361,2]
[330199164,1719123044164,-171.59539234,0.00018362,2]
[330199166,1719123044174,-151.0,0.00018387,2]
[330199168,1719123044183,-151.0,0.00018387,2]
[330199170,1719123044192,-1974.51768342,0.00018404,2]
[330199172,1719123044201,-493.684122,0.00018405,2]
[330199174,1719123044211,-454.462547,0.00018405,2]
[330199176,1719123044220,-329.122749,0.00018405,2]
[330199178,1719123044230,-1056.433044,0.00018405,2]
[330199180,1719123044239,-2287.405182,0.00018405,2]
[330199182,1719123044248,-1144.469131,0.00018405,2]
[330199184,1719123044258,-307.46861033,0.00018436,2]
[330199186,1719123044269,-150.595203,0.00018462,2]
[330199188,1719123044279,-5248.39118872,0.000185,2]
[330199190,1719123044288,-151.0,0.00018515,2]
[330199192,1719123044298,-151.0,0.00018515,2]
[330199194,1719123044307,-2000.0,0.00018522,2]
[330199196,1719123044317,-1093.211731,0.0001853,2]
[330199306,1719123047051,-906.788269,0.0001853,2]
[330199307,1719123047063,-264.108261,0.00018536,2]
[330199308,1719123047072,-260.838692,0.00018536,2]
[330199309,1719123047088,-341.80499,0.00018536,2]
[330199310,1719123047098,-337.199227,0.00018536,2]
[330199311,1719123047107,-562.092741,0.00018536,2]
[330199312,1719123047120,-20000.0,0.00018538,2]
[330199313,1719123047130,-2000.0,0.00018539,2]
[330199314,1719123047140,-2000.0,0.00018539,2]
[330199315,1719123047149,-2000.0,0.00018548,2]
[330199316,1719123047158,-2000.0,0.00018548,2]
[330199317,1719123047167,-1066.41041098,0.00018548,2]
[330199318,1719123047176,-327.19443299,0.00018642,4]
[330199319,1719123047186,-151.0,0.00018643,2]
[330199320,1719123047195,-151.0,0.00018643,2]
[330199321,1719123047204,-5925.29880229,0.00018707,2]
[330199322,1719123047214,-825.81777935,0.00018749,2]
[330199323,1719123047224,-8619.751797,0.0001875,2]
[330199324,1719123047234,-173.016532,0.00018759,2]
[330199325,1719123047245,-192.393212,0.00018759,2]
[330199326,1719123047255,-156.122049,0.00018759,2]
[330199327,1719123047265,-150.595203,0.00018759,2]
[330199328,1719123047274,-264.108261,0.00018759,2]
[330199329,1719123047284,-337.199227,0.00018759,2]
[330199330,1719123047297,-562.092741,0.00018759,2]
[330199331,1719123047306,-151.0,0.00018772,2]
[330199332,1719123047315,-151.0,0.00018772,2]
[330199333,1719123047325,-171.59539234,0.00018775,2]
[330199334,1719123047334,-219.26,0.0001879,3]
[330199335,1719123047343,-657.79,0.0001879,3]
[330199336,1719123047352,-365.61795864,0.00018799,2]
[330199337,1719123047362,-2000.0,0.000188,2]
[330199338,1719123047370,-32504.52402141,0.000188,2]
[330199479,1719124246113,-876.0,0.00017096,2]
[330199480,1719124246123,-839.50821258,0.00017892,2]
[330199481,1719124246132,-153.0,0.00017904,2]
[330199482,1719124246142,-20000.0,0.00018219,2]
[330199483,1719124246152,-825.81777935,0.00018529,2]
[330199484,1719124246161,-269.03503403,0.000187,2]
[330199485,1719124246170,-31988.43103164,0.000188,2]
[330199486,1719124347333,1000.0,0.00022,30]
[330199707,1719125438357,-876.0,0.00017315,2]
[330199708,1719125438367,-3125.23136675,0.00017865,4]
[330199709,1719125438377,-639.15515287,0.00017907,2]
[330199710,1719125438387,-153.0,0.00017939,2]
[330199711,1719125438398,-153.0,0.00017939,2]
[330199712,1719125438408,-153.0,0.00017939,2]
[330199713,1719125438417,-153.0,0.00017939,2]
[330199714,1719125438428,-153.0,0.00017939,2]
[330199715,1719125438438,-153.0,0.00017939,2]
[330199716,1719125438448,-153.0,0.00017939,2]
[330199717,1719125438457,-153.0,0.00017939,2]
[330199718,1719125438467,-1000.0,0.00018,7]
[330199720,1719125438477,-825.81777935,0.00018,2]
[330199721,1719125438487,-345.51025575,0.00018,2]
[330199767,1719126181924,3001.93,0.000225,30]
[330199768,1719126298841,1304.45225806,0.000225,30]
[330199811,1719126634384,-876.0,0.00017315,2]
[330199813,1719126634393,-153.0,0.00017964,2]
[330199814,1719126634402,-153.0,0.00017964,2]
[330199815,1719126634411,-153.0,0.00017972,2]
[330199817,1719126634421,-153.0,0.00017972,2]
[330199818,1719126634430,-153.0,0.00017972,2]
[330199819,1719126634440,-153.0,0.00017972,2]
[330199820,1719126634449,-300.0,0.00017999,2]
[330199821,1719126634459,-5579.78854654,0.00018,2]
[330199822,1719126634469,-1000.0,0.00018,5]
[330199823,1719126634479,-279.32974202,0.00018019,2]
[330199824,1719126634487,-600.0,0.00018048,2]
[330199825,1719126634497,-980.60123723,0.0001808,2]
[330199826,1719126634506,-20000.0,0.00018081,2]
[330199827,1719126634515,-1463.97160183,0.00018119,2]
[330199828,1719126634528,-600.0,0.00018236,2]
[330199829,1719126634537,-1463.97160183,0.00018331,2]
[330199830,1719126634547,-155.0,0.0001836,2]
[330199831,1719126634556,-600.0,0.00018424,2]
[330199832,1719126634565,-151.0,0.00018457,2]
[330199833,1719126634574,-1463.97160183,0.00018543,2]
[330199834,1719126634583,-151.0,0.00018568,2]
[330199835,1719126634593,-157.45762565,0.00018612,2]
[330199836,1719126634753,-151.0,0.00018678,2]
[330199837,1719126634762,-825.81777935,0.00018753,2]
[330199838,1719126634772,-1463.97160183,0.00018754,2]
[330199839,1719126634782,-151.0,0.00018789,2]
[330199840,1719126634791,-151.0,0.000188,2]
[330199841,1719126634801,-620.95775764,0.00018802,2]
[330199842,1719126634810,-2294.31849735,0.00018828,4]
[330200150,1719129032648,-876.0,0.00017791,2]
[330200151,1719129032658,-48465.62196658,0.00018,2]
[330200188,1719129038779,-1371.40881746,0.00018,2]
[330200551,1719131903124,514.7,0.00014,2]
[330200631,1719132632627,-4793.45697285,0.00014133,2]
[330200632,1719132632636,-2524.15844141,0.00015116,4]
[330200633,1719132632645,-253.41580889,0.0001559,2]
[330200634,1719132632654,-154.82195475,0.00015999,2]
[330200635,1719132632663,-14918.21491784,0.000165,2]
[330200636,1719132632672,-300.0,0.00016524,2]
[330200637,1719132632681,-2115.0148568,0.00016525,2]
[330200638,1719132632690,-2115.0148568,0.00016525,2]
[330200639,1719132632699,-1688.21117984,0.00016688,2]
[330200640,1719132632707,-1550.85270898,0.0001681,2]
[330200641,1719132632716,-565.7116958,0.00016847,2]
[330200642,1719132632725,-1547.08034047,0.00016848,2]
[330200643,1719132632734,-270.05188089,0.00016924,2]
[330200644,1719132632743,-154.82195475,0.00016925,2]
[330200645,1719132632752,-551.76699048,0.00016925,2]
[330200646,1719132632762,-620.95775764,0.00016926,2]
[330200647,1719132632772,-287.73827433,0.00016969,2]
[330200648,1719132632781,-1547.08034045,0.00017131,2]
[330200649,1719132632790,-1547.08034045,0.00017415,2]
[330200650,1719132632799,-876.0,0.00017428,2]
[330200651,1719132632808,-279.32974202,0.00017598,2]
[330200652,1719132632816,-1547.08034045,0.00017698,2]
[330200653,1719132632826,-620.04788788,0.00017772,2]
[330200654,1719132632835,-166.666666,0.00017808,2]
[330200655,1719132632844,-1547.08034045,0.00017981,2]
[330200656,1719132632853,-546.43316868,0.00018,2]
[330200682,1719132642310,-155.02979525,0.00016688,2]
[330200683,1719132642320,-151.0,0.0001681,2]
[330200684,1719132642329,-151.0,0.00016925,2]
[330200685,1719132642338,-198.183232,0.00017415,2]
[330200686,1719132642348,-16067.61388023,0.00018,2]
[330200706,1719132758961,-1055.16622381,0.00030881,120]
[330200707,1719132758984,-1214.38900724,0.00030881,120]
[330200708,1719132759005,-914.63586692,0.00030881,120]
[330200709,1719132759029,-2314.0,0.00030881,120]
[330201085,1719134674256,262.61016402,0.00014096,2]
[330201094,1719134953340,2186.55197401,0.0001,2]
[330201147,1719135039381,-271.34628133,0.00014134,2]
[330201148,1719135039391,-208.09058179,0.00016932,2]
[330201149,1719135039401,-3220.71105104,0.00016932,2]
[330201198,1719135364551,1061.45392422,0.00030875,120]
[330201203,1719135439869,914.63586692,0.00030875,120]
[330201329,1719136238289,-383.65601395,0.00015784,2]
[330201330,1719136238445,-326.94861135,0.00015784,2]
[330201331,1719136240410,-269.99661193,0.00015784,2]
[330201332,1719136240420,-3321.95821761,0.00016933,2]
[330201659,1719137131626,178.68,0.00010959,2]
[330201660,1719137142116,893.41,0.00010959,2]
[330201661,1719137207951,154.80649189,0.00010959,2]
[330201663,1719137222956,154.80649189,0.00010959,2]
[330201664,1719137270451,213.26132474,0.00013283,2]
[330201759,1719137437712,418.40645101,0.000161,7]
[330201771,1719137438855,-551.76699048,0.00015214,2]
[330201773,1719137438865,-6244.47096902,0.00016,2]
[330201774,1719137438877,-6008.87,0.00016,2]
[330201830,1719138632439,-154.82195475,0.00014784,2]
[330201831,1719138632449,-270.05188089,0.00014784,2]
[330201832,1719138632458,-300.0,0.00015661,2]
[330201833,1719138632468,-819.8342188,0.00015662,2]
[330201834,1719138632480,-24080.1657812,0.00015662,2]
[330201835,1719138632489,-1547.08034047,0.000159,2]
[330201836,1719138632498,-287.73827433,0.00016,2]
[330201837,1719138632507,-1547.08034045,0.00016452,2]
[330201838,1719138632517,-151.0,0.000168,2]
[330201839,1719138632526,-620.95775764,0.00016842,2]
[330201840,1719138632536,-1547.08034045,0.00017005,2]
[330201841,1719138632545,-439.59904765,0.0001734,2]
[330201842,1719138632554,-155.0,0.0001744,2]
[330201843,1719138632563,-876.0,0.00017552,2]
[330201844,1719138632572,-1547.08034045,0.00017557,2]
[330201845,1719138632581,-620.04788788,0.00017684,2]
[330201846,1719138632591,-154.80649189,0.00017796,2]